Cogmind - Beta 13 @@@ ROGUE MODE // 2024.07.05 @ 10:10:02 Player: AntiGoose Result: Destroyed by Y-45 Defender with Heavy Assault Rifle Performance ------------- Evolutions (1) 500 Regions Visited (2) 400 Robots Destroyed (35) 175 Value Destroyed (846) 846 Prototype IDs (3) 60 Alien Tech Used (0) 0 Bonus (0) 0 TOTAL SCORE: 1981 Bonus ------- None Cogmind --------- Core Integrity 0/400 Matter 300/300 Energy 100/100 System Corruption 0% Temperature Cool (27) Movement Core (1400) Ox27 Location -9/Materials Parts ------- > --- POWER (1) -------- (None) > --- PROPULSION (3) --- (None) > --- UTILITY (3) ------ Huge Storage Unit Signal Interpreter > --- WEAPON (2) ------- Heavy Hammer > --- INVENTORY (25) --- Cooling System High-capacity Battery (250) High-capacity Matter Pod (200) Visual Processing Unit Visual Processing Unit Sensor Array Improved Terrain Scanner Light Armor Plating Mining Claw Peak State ------------ > --- POWER ------------ Improved Ion Engine > --- PROPULSION ------- Light Treads Light Treads Light Treads > --- UTILITY ---------- Huge Storage Unit Signal Interpreter Hacking Suite > --- WEAPON ----------- Advanced Beam Cannon Improved Assault Rifle > --- INVENTORY -------- Cooling System High-capacity Battery High-capacity Matter Pod Visual Processing Unit Visual Processing Unit Sensor Array Improved Terrain Scanner Light Armor Plating Tractor Beam Heavy Assault Rifle Mining Laser Heavy Hammer Mining Claw [Rating: 18] Favorites ----------- Power Ion Engine Engine Ion Engine Propulsion Light Treads Treads Light Treads Leg Aluminum Leg Wheel Wheel Utility Hacking Suite Device Tractor Beam Storage Huge Storage Unit Processor Signal Interpreter Hackware Hacking Suite Weapon Improved Light Cannon Energy Gun EM Pulse Gun Energy Cannon Advanced Beam Cannon Ballistic Gun Heavy Assault Rifle Ballistic Cannon Improved Light Cannon Special Weapon Mining Laser Impact Weapon Heavy Hammer Slashing Weapon Mining Claw Build | -11 -10 -9 ------- Run | Yrd Mat Mat Slots Evolved 2 | . . 2 Power . | . . . Propulsion 1 | . . 1 Utility 1 | . . 1 Weapon . | . . . Parts Attached 39 | 6 9 24 Power 5 | 1 1 3 Engine 5 | 1 1 3 Core . | . . . Reactor . | . . . Propulsion 13 | 2 2 9 Treads 8 | 2 . 6 Leg 3 | . . 3 Wheel 2 | . 2 . Hover . | . . . Flight . | . . . Utility 5 | 1 2 2 Device 1 | . . 1 Storage 2 | 1 1 . Processor 1 | . . 1 Hackware 1 | . 1 . Protection . | . . . Artifact . | . . . Weapon 16 | 2 4 10 Energy Gun 2 | 1 . 1 Energy Cannon 1 | . . 1 Ballistic Gun 7 | 1 2 4 Ballistic Cannon 2 | . 2 . Launcher . | . . . Special Weapon 1 | . . 1 Impact Weapon 2 | . . 2 Slashing Weapon 1 | . . 1 Piercing Weapon . | . . . Special Melee Weapon . | . . . Unidentified Prototypes 3 | . . 3 Parts Lost 20 | . 4 16 Power 4 | . 1 3 Propulsion 6 | . 1 5 Utility 2 | . . 2 Weapon 8 | . 2 6 Highest Loss Streak 6 | . 4 6 To Critical Strikes . | . . . Average Slot Usage (%) 86 | . 94 81 Engine 8 | . 12 6 Treads 12 | . 10 14 Leg 2 | . . 4 Wheel 7 | . 17 2 Storage 12 | . 14 11 Processor 6 | . . 11 Hackware 11 | . 11 10 Energy Cannon 1 | . . 2 Ballistic Gun 8 | . 14 5 Ballistic Cannon 6 | . 13 2 Impact Weapon 4 | . . 6 Slashing Weapon 1 | . . 1 Naked Turns . | . . . Heaviest Build 94 | 13 92 94 Greatest Support 60 | 40 40 60 Greatest Overweight (x) 30 | . 4 30 Average Overweight (x) 2 | . 2 3 Largest Inventory Capacity 25 | 8 25 25 Average Capacity 21 | 6 16 25 Most Carried 15 | 4 13 15 Average Carried 9 | 1 7 10 Final Capacity 25 | 8 25 25 Final Carried 10 | 2 10 9 Class Distribution -------------------- 61% | Mutant 38% | Scavenger-Mutant Dominant Class ---------------- Mutant | -10/Materials Scavenger-Mutant | -9/Materials Resources | -11 -10 -9 ----------- Run | Yrd Mat Mat Matter Collected 1132 | 218 410 504 Remotely . | . . . Salvage Created 1043 | . 225 818 Parts 91 | . 21 70 Haulers Intercepted 2 | . . 2 Recyclers Shooed 1 | . . 1 Parts Field Recycled . | . . . Retrieved Matter . | . . . Parts Self-Destructed . | . . . Prevented . | . . . Kills | -11 -10 -9 ------- Run | Yrd Mat Mat Combat Hostiles Destroyed 27 | . 9 18 Melee 1 | . . 1 Guns 14 | . 7 7 Cannons 11 | . 2 9 Classes Destroyed 7 | . 3 4 Builder 1 | . . 1 Hauler 2 | . . 2 Watcher 5 | . 2 3 Swarmer 10 | . 6 4 Grunt 10 | . 3 7 Duelist 1 | . . 1 Sentry 6 | . . 6 Best Kill Streak 7 | . 7 3 Combat Bots Only 7 | . 7 3 Max Kills in Single Turn 1 | . 1 1 Gunslinging . | . . . Exploded . | . . . Melee 1 | . . 1 Uniques/NPCs Destroyed . | . . . Combat | -11 -10 -9 -------- Run | Yrd Mat Mat Hostile Shots Fired 336 | . 130 206 Missed 68 | . 27 41 Damage Taken 2963 | . 949 2014 Core 581 | . 164 417 Absorbed by Shields . | . . . Core Remaining (%) 67 | 100 34 . Volleys Fired 109 | . 30 79 Largest 2 | . 2 2 Hottest 100 | . 62 100 Shots Fired 160 | . 51 109 Gun 97 | . 32 65 Cannon 62 | . 19 43 Launcher . | . . . Special 1 | . . 1 Kinetic 138 | . 51 87 Thermal 22 | . . 22 Explosive . | . . . Electromagnetic . | . . . Robot Hit Streak 13 | . 5 13 Robot Miss Streak 9 | . 3 9 Penetration Max . | . . . Secondary Targets 1 | . 1 . Max Gunslinging Chain 1 | . 1 . Shots Hit Robots 96 | . 28 68 Core Hits 43 | . 11 32 Critical Kills . | . . . Critical Parts Destroyed 1 | . . 1 Critical Strikes 2 | . 1 1 Destroy 1 | . . 1 Blast 1 | . 1 . Melee Attacks 6 | . . 6 Impact 5 | . . 5 Slashing 1 | . . 1 Piercing . | . . . Sneak Attacks . | . . . Combat Hostiles . | . . . Follow-up Attacks . | . . . Damage Inflicted 1763 | . 616 1147 Guns 897 | . 350 547 Cannons 735 | . 255 480 Explosions . | . . . Melee 94 | . . 94 Ramming 13 | . 11 2 Kinetic 1302 | . 605 697 Thermal 354 | . . 354 Explosive . | . . . Electromagnetic . | . . . Impact 71 | . . 71 Slashing 23 | . . 23 Piercing . | . . . Highest Corruption 1 | . 1 . Average Corruption 1 | . 1 . Corruption Purged . | . . . Corruption Blocked . | . . . Effects 3 | . 3 . Matter Fused 1 | . 1 . Energy Discharges 1 | . 1 . Data Loss (major) 1 | . 1 . Overload Shots . | . . . Overflow Damage 45 | . . 45 Projectiles 4 | . . 4 Explosions . | . . . Melee 41 | . . 41 Knockbacks 6 | . 6 . Impact 1 | . 1 . Kinetic 5 | . 5 . Secondary . | . . . Self-Inflicted Damage 5 | . 5 . Shots . | . . . Rammed 2 | . 1 1 Targets Rammed 2 | . 1 1 Kicked . | . . . Crushed . | . . . Highest Temperature 372 | . 150 372 Average Temperature 119 | . 89 128 Received Heat Transfer 990 | . 228 762 Effects 2 | . . 2 Interference 1 | . . 1 Damage (minor) 1 | . . 1 Siege Activations . | . . . Robots Corrupted . | . . . Combat Hostiles . | . . . Parts Fried . | . . . Impact Corruptions 2 | . . 2 Robots Melted . | . . . Combat Hostiles . | . . . Parts Melted . | . . . Heat Transferred 642 | . . 642 Parts Sabotaged . | . . . Parts Stolen . | . . . Parts Stripped . | . . . Power Chain Reactions . | . . . Alert | -11 -10 -9 ------- Run | Yrd Mat Mat Peak Influence 210 | . 166 210 Initial 2 | . . 2 Average 70 | . 41 92 Maximum Alert Level 1 | . . 1 Low Security (%) 99 | 100 100 98 Level 1 . | . . 1 Level 2 . | . . . Level 3 . | . . . Level 4 . | . . . Level 5 . | . . . High Security . | . . . Max Security . | . . . Squads Dispatched 4 | . 2 2 Investigation 3 | . 2 1 Extermination . | . . . Reinforcement 1 | . . 1 Assault . | . . . Garrison . | . . . Intercept . | . . . Searches Triggered . | . . . Construction Impeded . | . . . Haulers Reinforced . | . . . Active Scanning Responses . | . . . Cargo Convoy Interrupts . | . . . Stealth | -11 -10 -9 --------- Run | Yrd Mat Mat Distress Signals 5 | . 2 3 Communications Jammed . | . . . Distress Signals . | . . . Times Spotted 41 | . 15 26 Peak Tracking Total 9 | . 9 6 Tactical Retreats 2 | . 1 1 Traps | -11 -10 -9 ------- Run | Yrd Mat Mat Traps Triggered 4 | . 3 1 Indirectly . | . . . Trap Hack Attempts . | . . . Triggered . | . . . Disarmed . | . . . Reprogrammed . | . . . Reused . | . . . Traps Extracted . | . . . Installed . | . . . Triggered . | . . . Machines | -11 -10 -9 ---------- Run | Yrd Mat Mat Machines Disabled . | . . . Max in Single Turn . | . . . Machines Repaired . | . . . Machines Dismantled . | . . . Machines Sabotaged . | . . . Overloaded Fab Kills . | . . . Hacking | -11 -10 -9 --------- Run | Yrd Mat Mat Machines Accessed 3 | . 3 . Terminals 3 | . 3 . Fabricators . | . . . Repair Stations . | . . . Recycling Units . | . . . Scanalyzers . | . . . Garrison Access . | . . . Total Hacks 8 | . 8 . Successful 7 | . 7 . Failed 1 | . 1 . Catastrophic . | . . . Database Lockouts . | . . . Manual 2 | . 2 . Terminals 8 | . 8 . Fabricators . | . . . Repair Stations . | . . . Recycling Units . | . . . Scanalyzers . | . . . Garrison Access . | . . . Terminal Hacks 7 | . 7 . Record 2 | . 2 . Emergency Access Points 1 | . 1 . Recall Investigation 1 | . 1 . Hauler Manifests 2 | . 2 . Zone Layout 1 | . 1 . Fabricator Hacks . | . . . Repair Station Hacks . | . . . Recycling Unit Hacks . | . . . Scanalyzer . | . . . Garrison Access Hacks . | . . . Unauthorized Hacks . | . . . Terminals . | . . . Fabricators . | . . . Repair Stations . | . . . Recycling Units . | . . . Scanalyzers . | . . . Garrison Access . | . . . Data Cores Recovered 1 | . 1 . Used . | . . . Hacking Detections 2 | . 2 . Full Trace Events . | . . . Feedback Events . | . . . Feedback Blocked . | . . . Robot Schematics Acquired . | . . . Robots Built . | . . . Authchips . | . . . Time . | . . . Total Robot Build Rating . | . . . Part Schematics Acquired . | . . . Parts Built . | . . . Authchips . | . . . Time . | . . . Total Part Build Rating . | . . . Parts Repaired . | . . . Time . | . . . Parts Recycled . | . . . Recycled Matter . | . . . Retrieved Matter . | . . . Retrieved Components . | . . . Parts Scanalyzed . | . . . Part Schematics Acquired . | . . . Parts Damaged . | . . . Bothacking | -11 -10 -9 ------------ Run | Yrd Mat Mat Used RIF Installer . | . . . Robots Hacked . | . . . Non-combat . | . . . Combat . | . . . Robot Hacks Applied . | . . . Relay Couplers Released . | . . . Fabnet Peak Effective % . | . . . Robots Rewired . | . . . Allies Hacked . | . . . Hacks Repelled . | . . . Allies | -11 -10 -9 -------- Run | Yrd Mat Mat Total Allies . | . . . Largest Group . | . . . Highest-Rated Group . | . . . Highest-Rated Ally . | . . . Total Orders . | . . . Ally Attacks . | . . . Total Damage . | . . . Kills . | . . . Allies Corrupted . | . . . Allies Melted . | . . . Intel | -11 -10 -9 ------- Run | Yrd Mat Mat Robot Analysis Total . | . . . Derelict Logs Recovered . | . . . Drone Launches . | . . . Drone Recoveries . | . . . Exploration | -11 -10 -9 ------------- Run | Yrd Mat Mat Turns Passed 2689 | 65 1005 1619 Spaces Moved 1085 | 39 636 410 Core 16 | 9 . 7 Treads 442 | 30 191 221 Legs 87 | . . 87 Wheels 540 | . 445 95 Hover . | . . . Flight . | . . . Fastest Speed 50 | 50 80 140 Average Speed 210 | 134 137 330 Slowest Speed 1550 | 160 160 1550 Overloaded Moves . | . . . Propulsion Burnouts . | . . . Robots Hopped . | . . . Cave-ins Triggered . | . . . Exploration Rate (%) 44 | 4 92 38 Regions Visited 2 Branch Regions . Pre-discovered Areas . | . . . Known Exits Taken . | . . . Unknown Exits Taken 2 | 1 1 . Scrap Searched . | . . . Spaces Dug . | . . . Terrain Destroyed 4 | . 3 1 Melee . | . . . Projectile 4 | . 3 1 AOE . | . . . Terrain Rammed . | . . . Walls Destroyed . | . . . Machines Disabled . | . . . Actions | -11 -10 -9 --------- Run | Yrd Mat Mat Total 1328 | 52 717 559 Wait 13 | . 7 6 Move 1083 | 38 635 410 Hop . | . . . Pick Up 54 | 8 24 22 Fast Attach . | . . . Attach 27 | 6 6 15 Detach . | . . . Swap 12 | . 3 9 Drop 22 | . 11 11 Fire 109 | . 30 79 Melee 6 | . . 6 Ram 1 | . 1 . Kick . | . . . Crush 1 | . . 1 Escape Stasis . | . . . Rewire . | . . . Trap . | . . . Miscellaneous . | . . . Route ------- -11/Scrapyard -10/Materials (discovered 5 exits: [*Mat x3] / [*Min x2]) -9/Materials (discovered 2 exits: [*Mat x2]) History --------- Turn | Location | Event 41 | -11/Scrapyard | Discovered new exit (range 15) 66 | -11/Scrapyard | Entered Materials 250 | -10/Materials | Discovered new exit (range 16) 321 | -10/Materials | Build established: Mutant 406 | -10/Materials | Core integrity fell below 50% 442 | -10/Materials | Lost 4 parts (1p1n2w) 448 | -10/Materials | Destroyed 7 combat bots 449 | -10/Materials | Discovered new exit (range 8) 696 | -10/Materials | Discovered new exit (range 16) 875 | -10/Materials | Discovered new exit (range 12) 1062 | -10/Materials | Discovered new exit (range 8) 1071 | -10/Materials | Entered another Materials area 1071 | -9/Materials | Evolved 2 slots: Propulsion x1, Utility x1 1743 | -9/Materials | Discovered new exit (range 4) 1805 | -9/Materials | Build established: Scavenger-Mutant 2375 | -9/Materials | Core integrity fell below 50% 2453 | -9/Materials | Lost 6 parts (3n3w) 2494 | -9/Materials | Core integrity fell below 20% 2652 | -9/Materials | Discovered new exit (range 12) 2690 | -9/Materials | Destroyed by Y-45 Defender with Heavy Assault Rifle Last Messages --------------- R-06 Scavenger collects Aluminum Leg. R-06 Scavenger collects Lgt. Treads. R-06 Scavenger collects Beam Rifle. R-06 Scavenger collects Heat Sink. K-01 Serf collects debris. Mining Laser destroyed. Destroyed Backup Propulsion I. L-31 Rogue system corrupted by crushing effect. Destroyed Broken Melee Analysis Suite. L-31 Rogue system corrupted by crushing effect. L-31 Rogue system terminally corrupted. Acquired 10 matter. R-06 Scavenger collects Lgt. Treads. K-01 Serf collects debris. EXIT=FOUND Hacking Suite destroyed. Imp. Ion Engine destroyed. Tractor Beam destroyed. Aluminum Leg destroyed. Critical hit (Burn: +37). Map ----- +----------------------------------------------------+ | ??????????????????????????????????????????? | | ??????????????????????????????????????????? | | ??????????????????????????????????????????? | | ??????????????????????????????????????????? | | ??????????????????????????????????????????? | | ??????????????????????????????????????????? | | ??????????????????????????????????????????? | | ??????????????????????????????????????????? | | ??????????????????????????????????????????? | | ??????????????????????????????????????????? | | ??????????????????????????????????????????? | | ??????????????????????????????????????????? | | ???????????????????????#####??????????????? | | ???????????????????????u ??????????????? | | ???????????????????????# #??????????????? | | ???????????????????????# #??????????????? | | ???????????????????????# ##?????????????? | | ???????????????????????# ??????????????? | | ???????????????????????# #??????????????? | | ???????????????????????+ #??????????????? | | ???#######?????????????# #??????????????? | | #### ###+########### #??????????????? | | # ## ## ##?????????????? | | %+ %/ # ###+####??????? | | # ## # #??????? | | # ## + @Y < #??????? | | ## ### " """"" # #??????? | | ## #?# """"""""" # ###### #??????? | | ## #?# """ """ #######?????????????? | | ## #?#############???????????????????? | | +####% #?????????????????????????????????? | | #?????????????????????????????????? | | #?????????????????????????????????? | | #?????????????????????????????????? | | #+#### ##?????????????????????????????????? | | ?????# #??????????????????????????????????? | | ?????# #??????????????????????????????????? | | ?????# #??????????????????????????????????? | | ?????# #??????????????????????????????????? | | ?????# #??????????????????????????????????? | | ?????# #??????????????????????????????????? | | ?????# #?????###??????????????????????????? | | ???### ###??## #######????????????????????? | | ???# #??# #????????????????????? | | ???# =#### """% #????????????????????? | | ???# =!%* + """ =#????????????????????? | | ???# !#### """ %#?????????#??????????? | | ???# #??# % ######??? #??????????? | | ???#######??# """ [# ### #??????????? | | ????????????# """!!+ #??????????? | +----------------------------------------------------+ Best States ------------- Heat Dissipation 28 Energy Generation 12 Energy Capacity 265 Matter Stores 300 Matter Capacity 300 Sight Range 16 Terrain Scan Density 10 Evasion (%) 50 Recoil Reduction 3 Offensive Hacking 10 Item Schematics ----------------- None Robot Schematics ------------------ None Fabricated ------------ Nothing Alien Tech Used ----------------- None Achievements -------------- GoHome() Challenges ------------ None Game ------ Seed RainbowFirePick Manual? 0 Play Time 00:17:09 Cumulative 5.4 hours Start 2024.07.05 @ 09:54:12 End 2024.07.05 @ 10:10:02 Sessions 1 Manual Loads 0 Difficulty Rogue Special Mode None Game No. 13 Rogue 7 Adventurer 6 Explorer 0 Win Type - Total 0 Types 0/0/0/0/0/0/0/0/0 Lore% 7 Gallery% 11 Achievement% 11 Wizard Run 0 Options --------- Layout 1 ASCII 0 Keyboard 0 Movement Mouse Keybinds 0 Fullscreen 1 Font 32/SmallcapsGlow Map View 50x35 Zoom Use 0% Tactical HUD 0 Map Filters NONE Filters NONE Steam 1 RUN: 8719dde5-4e39-47ae-b65b-d13ad7c7e5e3